fUST/lending_fUST_20250716
["ID","MTS","AMOUNT","RATE_DAILY","PERIOD"]
[372377125,1752618656163,-460.0,0.00020273,2]
[372377127,1752618656175,-460.0,0.00020273,2]
[372377129,1752618656184,-460.0,0.00020273,2]
[372377131,1752618656193,-550.84,0.00020273,2]
[372377133,1752618656203,-460.0,0.00020273,2]
[372377135,1752618656212,-151.0,0.000203,4]
[372377137,1752618656222,-151.0,0.000203,4]
[372377139,1752618656231,-305.373497,0.00020309,2]
[372377141,1752618656240,-305.373497,0.00020309,2]
[372377143,1752618656250,-500.0,0.00020314,2]
[372377145,1752618656259,-151.0,0.00020314,2]
[372377147,1752618656269,-151.0,0.00020314,2]
[372377156,1752618656337,-151.0,0.00020314,2]
[372377158,1752618656352,-1000.0,0.00020321,2]
[372377160,1752618656362,-261.54019663,0.00020321,2]
[372377177,1752618656505,-238.45980337,0.00020321,2]
[372377179,1752618656515,-525.77011804,0.00020321,2]
[372377181,1752618656524,-500.0,0.00020341,2]
[372377183,1752618656533,-151.0,0.00020341,2]
[372377185,1752618656543,-151.0,0.00020341,2]
[372377187,1752618656552,-151.0,0.00020341,2]
[372377189,1752618656562,-303.71816274,0.00020369,2]
[372377192,1752618656571,-151.0,0.00020369,2]
[372377194,1752618656580,-179.70857585,0.00020369,2]
[372377195,1752618656590,-151.0,0.00020369,2]
[372377198,1752618656600,-151.0,0.00020369,2]
[372377200,1752618656609,-216.30600759,0.00020396,2]
[372377202,1752618656618,-245.0,0.00020396,2]
[372377204,1752618656627,-460.0,0.00020496,2]
[372377206,1752618656636,-460.0,0.00020496,2]
[372377208,1752618656645,-460.0,0.00020496,2]
[372377210,1752618656655,-598.97,0.00020496,2]
[372377212,1752618656664,-460.0,0.00020496,2]
[372377213,1752618656675,-460.0,0.00020496,2]
[372377215,1752618656684,-460.0,0.00020496,2]
[372377218,1752618656694,-460.0,0.00020496,2]
[372377220,1752618656703,-460.0,0.00020496,2]
[372377222,1752618656713,-490.96951478,0.00020497,2]
[372377224,1752618656722,-467.97606816,0.00020497,2]
[372377226,1752618656731,-460.0,0.00020497,2]
[372377228,1752618656741,-256.02350475,0.00020497,2]
[372377230,1752618656754,-203.97649525,0.00020497,2]
[372377232,1752618656763,-460.0,0.00020497,2]
[372377234,1752618656772,-460.0,0.00020497,2]
[372377236,1752618656781,-416.93170765,0.00020497,2]
[372377238,1752618656791,-460.0,0.00020497,2]
[372377240,1752618656800,-460.0,0.00020497,2]
[372377242,1752618656809,-260.0,0.00020519,2]
[372377244,1752618656819,-177.7155066,0.00020521,2]
[372377246,1752618656829,-1153.1540042,0.00020521,2]
[372377248,1752618656838,-177.931191,0.00020521,2]
[372377250,1752618656847,-153.0,0.00020521,2]
[372377252,1752618656856,-165.8561197,0.00020521,2]
[372377254,1752618656866,-153.0,0.00020521,2]
[372377256,1752618656875,-159.7039591,0.00020521,2]
[372377258,1752618656884,-230.76969291,0.00020532,2]
[372377260,1752618656893,-838.84061749,0.00020532,2]
[372377262,1752618656902,-160.0,0.00020532,2]
[372377264,1752618656912,-160.0,0.00020532,2]
[372377266,1752618656921,-160.0,0.00020532,2]
[372377268,1752618656931,-160.0,0.00020532,2]
[372377270,1752618656940,-160.0,0.00020532,2]
[372377272,1752618656950,-215.50840239,0.00020532,2]
[372377274,1752618656959,-12603.13032295,0.00020533,2]
[372377276,1752618656969,-520.84375,0.00020534,2]
[372377278,1752618656978,-160.0,0.00020534,2]
[372377280,1752618656987,-2366.76,0.00020538,3]
[372377282,1752618656996,-1183.38,0.00020538,3]
[372377284,1752618657005,-591.68,0.00020538,3]
[372377286,1752618657014,-588.76,0.00020538,3]
[372377288,1752618657024,-151.0,0.00020538,2]
[372377290,1752618657034,-268.065126,0.00020538,2]
[372377292,1752618657043,-151.0,0.00020538,2]
[372377294,1752618657054,-151.0,0.00020538,2]
[372377296,1752618657065,-151.0,0.00020538,2]
[372377298,1752618657074,-151.0,0.00020538,2]
[372377300,1752618657085,-151.0,0.00020538,2]
[372377302,1752618657094,-151.0,0.00020538,2]
[372377304,1752618657104,-151.0,0.00020538,2]
[372377306,1752618657113,-151.0,0.00020538,2]
[372377308,1752618657123,-222.004628,0.00020538,2]
[372377310,1752618657134,-222.004628,0.00020538,2]
[372377312,1752618657144,-151.0,0.00020538,2]
[372377314,1752618657153,-420.6220422,0.00020541,2]
[372377316,1752618657163,-460.0,0.00020547,2]
[372377318,1752618657172,-151.0,0.00020547,2]
[372377320,1752618657181,-151.0,0.00020547,2]
[372377322,1752618657192,-151.0,0.00020547,2]
[372377324,1752618657201,-151.0,0.00020547,2]
[372377326,1752618657211,-236.940462,0.00020547,2]
[372377328,1752618657222,-475.78146136,0.00020547,2]
[372377330,1752618657231,-305.373497,0.00020547,2]
[372377332,1752618657240,-305.373497,0.00020547,2]
[372377334,1752618657249,-460.0,0.00020547,2]
[372377336,1752618657258,-460.0,0.00020547,2]
[372377338,1752618657267,-460.0,0.00020547,2]
[372377340,1752618657279,-152.459191,0.00020547,2]
[372377342,1752618657288,-460.0,0.00020547,2]
[372377344,1752618657297,-152.459191,0.00020547,2]
[372377346,1752618657307,-460.0,0.00020547,2]
[372377348,1752618657316,-336.06,0.00020547,2]
[372377350,1752618657325,-460.0,0.00020547,2]
[372377353,1752618657335,-460.0,0.00020547,2]
[372377355,1752618657344,-460.0,0.00020547,2]
[372377357,1752618657353,-460.0,0.00020547,2]
[372377358,1752618657362,-460.0,0.00020547,2]
[372377361,1752618657371,-195.76260256,0.00020547,2]
[372377363,1752618657380,-460.0,0.00020547,2]
[372377364,1752618657390,-460.0,0.00020547,2]
[372377367,1752618657399,-460.0,0.00020547,2]
[372377368,1752618657408,-460.0,0.00020547,2]
[372377371,1752618657418,-460.0,0.00020547,2]
[372377372,1752618657427,-460.0,0.00020547,2]
[372377375,1752618657437,-460.0,0.00020547,2]
[372377377,1752618657446,-460.0,0.00020547,2]
[372377379,1752618657455,-460.0,0.00020547,2]
[372377388,1752618657535,-518.89,0.00020547,2]
[372377390,1752618657545,-460.0,0.00020547,2]
[372377392,1752618657555,-460.0,0.00020547,2]
[372377394,1752618657564,-460.0,0.00020547,2]
[372377396,1752618657573,-460.0,0.00020547,2]
[372377398,1752618657583,-460.0,0.00020547,2]
[372377401,1752618657592,-1135.32,0.00020547,2]
[372377402,1752618657602,-460.0,0.00020547,2]
[372377405,1752618657611,-4059.97,0.00020547,2]
[372377407,1752618657620,-460.0,0.00020547,2]
[372377409,1752618657630,-1873.25,0.00020547,2]
[372377411,1752618657639,-746.27,0.00020547,2]
[372377412,1752618657648,-460.0,0.00020547,2]
[372377415,1752618657657,-460.0,0.00020547,2]
[372377416,1752618657667,-460.0,0.00020547,2]
[372377419,1752618657676,-460.0,0.00020547,2]
[372377421,1752618657685,-460.0,0.00020547,2]
[372377423,1752618657695,-460.0,0.00020547,2]
[372377425,1752618657704,-460.0,0.00020547,2]
[372377427,1752618657713,-460.0,0.00020547,2]
[372377429,1752618657723,-460.0,0.00020547,2]
[372377431,1752618657732,-460.0,0.00020547,2]
[372377433,1752618657741,-460.0,0.00020547,2]
[372377435,1752618657751,-158.97912392,0.00020547,2]
[372377438,1752618657777,-1225.89087608,0.00020547,2]
[372377440,1752618657786,-460.0,0.00020547,2]
[372377442,1752618657796,-460.0,0.00020547,2]
[372377444,1752618657805,-460.0,0.00020547,2]
[372377446,1752618657815,-472.40506302,0.00020547,2]
[372377449,1752618657827,-1008.77493698,0.00020547,2]
[372377451,1752618657836,-460.0,0.00020547,2]
[372377453,1752618657846,-455.58154844,0.00020547,2]
[372377455,1752618657855,-460.0,0.00020547,2]
[372377457,1752618657865,-1389.79,0.00020547,2]
[372377459,1752618657874,-460.0,0.00020547,2]
[372377461,1752618657884,-460.0,0.00020547,2]
[372377463,1752618657893,-460.0,0.00020547,2]
[372377465,1752618657902,-460.0,0.00020547,2]
[372377467,1752618657911,-460.0,0.00020547,2]
[372377469,1752618657921,-460.0,0.00020547,2]
[372377471,1752618657931,-460.0,0.00020547,2]
[372377472,1752618657941,-460.0,0.00020547,2]
[372377473,1752618657951,-460.0,0.00020547,2]
[372377474,1752618657962,-460.0,0.00020547,2]
[372377475,1752618657971,-460.0,0.00020547,2]
[372377476,1752618657980,-460.0,0.00020547,2]
[372377477,1752618657990,-460.0,0.00020547,2]
[372377478,1752618657999,-3259.16,0.00020547,2]
[372377479,1752618658009,-460.0,0.00020547,2]
[372377480,1752618658019,-460.0,0.00020547,2]
[372377481,1752618658028,-460.0,0.00020547,2]
[372377482,1752618658038,-957.55,0.00020547,2]
[372377483,1752618658047,-460.0,0.00020547,2]
[372377484,1752618658059,-1328.03,0.00020547,2]
[372377485,1752618658069,-460.0,0.00020547,2]
[372377487,1752618658078,-460.0,0.00020547,2]
[372377489,1752618658087,-460.0,0.00020547,2]
[372377491,1752618658098,-460.0,0.00020547,2]
[372377493,1752618658108,-460.0,0.00020547,2]
[372377495,1752618658117,-460.0,0.00020547,2]
[372377497,1752618658126,-460.0,0.00020547,2]
[372377499,1752618658137,-635.38,0.00020547,2]
[372377501,1752618658146,-460.0,0.00020547,2]
[372377503,1752618658155,-460.0,0.00020547,2]
[372377505,1752618658164,-1382.32,0.00020547,2]
[372377507,1752618658175,-460.0,0.00020547,2]
[372377509,1752618658184,-261.79380006,0.00020547,2]
[372377511,1752618658194,-460.0,0.00020547,2]
[372377513,1752618658203,-460.0,0.00020547,2]
[372377515,1752618658213,-3973.64,0.00020547,2]
[372377517,1752618658223,-460.0,0.00020547,2]
[372377519,1752618658232,-460.0,0.00020547,2]
[372377521,1752618658242,-460.0,0.00020547,2]
[372377523,1752618658251,-550.84,0.00020547,2]
[372377525,1752618658261,-460.0,0.00020547,2]
[372377527,1752618658271,-1000.0,0.00020568,2]
[372377529,1752618658280,-151.0,0.00020578,2]
[372377531,1752618658291,-151.0,0.00020578,2]
[372377533,1752618658301,-151.0,0.00020578,2]
[372377535,1752618658310,-151.0,0.00020578,2]
[372377537,1752618658319,-151.0,0.000207,3]
[372377540,1752618658329,-151.0,0.000207,3]
[372377542,1752618658339,-226.57457095,0.00020722,2]
[372377543,1752618658349,-6549.49599549,0.00020739,2]
[372377545,1752618658358,-460.0,0.0002077,2]
[372377547,1752618658368,-469.32885845,0.0002077,2]
[372377549,1752618658377,-460.0,0.0002077,2]
[372377551,1752618658387,-174.05,0.0002077,2]
[372377553,1752618658396,-460.0,0.0002077,2]
[372377555,1752618658406,-460.0,0.0002077,2]
[372377557,1752618658415,-191.628111,0.00020771,2]
[372377559,1752618658425,-460.0,0.00020771,2]
[372377561,1752618658434,-460.0,0.00020771,2]
[372377563,1752618658444,-2652.93353428,0.00020787,2]
[372377565,1752618658453,-779.83961309,0.00020816,2]
[372377567,1752618658463,-460.0,0.00020821,2]
[372377569,1752618658473,-151.0,0.00020821,2]
[372377571,1752618658482,-489.18,0.00020821,2]
[372377573,1752618658492,-460.0,0.00020821,2]
[372377575,1752618658501,-460.0,0.00020821,2]
[372377577,1752618658511,-460.0,0.00020821,2]
[372377579,1752618658520,-460.0,0.00020821,2]
[372377581,1752618658530,-460.0,0.00020821,2]
[372377583,1752618658539,-460.0,0.00020821,2]
[372377585,1752618658549,-460.0,0.00020821,2]
[372377588,1752618658559,-460.0,0.00020821,2]
[372377590,1752618658568,-460.0,0.00020821,2]
[372377592,1752618658577,-460.0,0.00020821,2]
[372377594,1752618658587,-460.0,0.00020821,2]
[372377596,1752618658597,-460.0,0.00020821,2]
[372377597,1752618658606,-460.0,0.00020821,2]
[372377599,1752618658616,-518.89,0.00020821,2]
[372377602,1752618658626,-460.0,0.00020821,2]
[372377603,1752618658635,-460.0,0.00020821,2]
[372377605,1752618658644,-460.0,0.00020821,2]
[372377607,1752618658653,-1135.32,0.00020821,2]
[372377609,1752618658662,-460.0,0.00020821,2]
[372377611,1752618658672,-4059.97,0.00020821,2]
[372377613,1752618658682,-460.0,0.00020821,2]
[372377622,1752618658752,-1873.25,0.00020821,2]
[372377624,1752618658769,-746.27,0.00020821,2]
[372377626,1752618658779,-460.0,0.00020821,2]
[372377628,1752618658788,-460.0,0.00020821,2]
[372377630,1752618658799,-460.0,0.00020821,2]
[372377632,1752618658808,-460.0,0.00020821,2]
[372377634,1752618658818,-460.0,0.00020821,2]
[372377636,1752618658829,-460.0,0.00020821,2]
[372377638,1752618658838,-460.0,0.00020821,2]
[372377641,1752618658848,-1384.87,0.00020821,2]
[372377643,1752618658857,-460.0,0.00020821,2]
[372377645,1752618658867,-1481.18,0.00020821,2]
[372377647,1752618658877,-460.0,0.00020821,2]
[372377649,1752618658886,-1389.79,0.00020821,2]
[372377651,1752618658896,-460.0,0.00020821,2]
[372377653,1752618658906,-460.0,0.00020821,2]
[372377655,1752618658916,-460.0,0.00020821,2]
[372377657,1752618658927,-460.0,0.00020821,2]
[372377659,1752618658936,-460.0,0.00020821,2]
[372377661,1752618658946,-460.0,0.00020821,2]
[372377663,1752618658955,-465.48192467,0.00020821,2]
[372377665,1752618658964,-460.0,0.00020821,2]
[372377667,1752618658973,-460.0,0.00020821,2]
[372377669,1752618658983,-460.0,0.00020821,2]
[372377671,1752618658993,-460.0,0.00020821,2]
[372377672,1752618659002,-460.0,0.00020821,2]
[372377674,1752618659012,-460.0,0.00020821,2]
[372377676,1752618659021,-3259.16,0.00020821,2]
[372377678,1752618659031,-460.0,0.00020821,2]
[372377680,1752618659041,-957.55,0.00020821,2]
[372377682,1752618659051,-460.0,0.00020821,2]
[372377684,1752618659063,-1328.03,0.00020821,2]
[372377686,1752618659072,-439.20547736,0.00020821,2]
[372377688,1752618659082,-460.0,0.00020821,2]
[372377690,1752618659091,-460.0,0.00020821,2]
[372377692,1752618659102,-460.0,0.00020821,2]
[372377694,1752618659111,-460.0,0.00020821,2]
[372377696,1752618659121,-460.0,0.00020821,2]
[372377698,1752618659131,-460.0,0.00020821,2]
[372377700,1752618659140,-635.38,0.00020821,2]
[372377702,1752618659150,-460.0,0.00020821,2]
[372377704,1752618659159,-460.0,0.00020821,2]
[372377706,1752618659168,-1382.32,0.00020821,2]
[372377708,1752618659179,-460.0,0.00020821,2]
[372377710,1752618659189,-344.40595377,0.00020821,2]
[372377712,1752618659198,-460.0,0.00020821,2]
[372377714,1752618659207,-3973.64,0.00020821,2]
[372377716,1752618659217,-460.0,0.00020821,2]
[372377718,1752618659226,-460.0,0.00020821,2]
[372377720,1752618659236,-460.0,0.00020821,2]
[372377722,1752618659245,-550.84,0.00020821,2]
[372377724,1752618659255,-460.0,0.00020821,2]
[372377726,1752618659265,-500.0,0.00020861,2]
[372377728,1752618659274,-500.0,0.00020861,2]
[372377730,1752618659283,-737.72433787,0.00020886,2]
[372377732,1752618659293,-211.948,0.00020888,2]
[372377734,1752618659303,-754.0,0.00020888,2]
[372377736,1752618659313,-420.0,0.00020888,2]
[372377738,1752618659323,-312.0,0.00020888,2]
[372377740,1752618659332,-151.0,0.000209,4]
[372377742,1752618659341,-249.79353952,0.000209,2]
[372377744,1752618659351,-532.0956986,0.00020927,2]
[372377746,1752618659360,-5000.0,0.00020962,2]
[372377748,1752618659369,-500.0,0.00020973,2]
[372377750,1752618659379,-500.0,0.00020973,2]
[372377752,1752618659388,-501.86520861,0.00020973,2]
[372377754,1752618659398,-500.0,0.00020973,2]
[372377756,1752618659408,-613.77051335,0.00020973,2]
[372377758,1752618659417,-500.0,0.00020973,2]
[372377760,1752618659427,-500.0,0.00020973,2]
[372377762,1752618659437,-500.0,0.00020973,2]
[372377764,1752618659447,-539.52386784,0.00020985,2]
[372377766,1752618659456,-1283.0,0.00020989,2]
[372377768,1752618659465,-5779.94,0.00021,2]
[372377770,1752618659474,-151.0,0.00021,2]
[372377772,1752618659484,-151.0,0.00021,2]
[372377775,1752618659494,-10000.0,0.00021,5]
[372377777,1752618659504,-9317.72446714,0.00021,2]
[372377778,1752618659513,-269.90181322,0.00021,2]
[372377780,1752618659522,-169.10995551,0.00021,10]
[372377782,1752618659532,-151159.46126533,0.00021,3]
[372377784,1752618659541,-257728.93359636,0.00021,15]
[372377786,1752618659551,-12581.98625357,0.00021,3]
[372377788,1752618659560,-460.0,0.00021045,2]
[372377790,1752618659570,-305.373497,0.00021047,2]
[372377792,1752618659579,-305.373499,0.00021047,2]
[372377794,1752618659589,-360.0,0.00021067,2]
[372377796,1752618659598,-183.691593,0.00021095,2]
[372377798,1752618659607,-151.0,0.00021095,2]
[372377800,1752618659616,-151.0,0.00021095,2]
[372377802,1752618659625,-151.0,0.00021095,2]
[372377804,1752618659635,-222.004628,0.00021095,2]
[372377806,1752618659644,-222.004628,0.00021095,2]
[372377808,1752618659654,-152.459191,0.00021095,2]
[372377810,1752618659663,-152.459191,0.00021095,2]
[372377812,1752618659673,-460.0,0.00021095,2]
[372377814,1752618659682,-460.0,0.00021095,2]
[372377816,1752618659692,-460.0,0.00021095,2]
[372377818,1752618659701,-460.0,0.00021095,2]
[372377821,1752618659711,-460.0,0.00021095,2]
[372377823,1752618659720,-460.0,0.00021095,2]
[372377825,1752618659730,-268.34524034,0.00021095,2]
[372377827,1752618659739,-518.89,0.00021095,2]
[372377829,1752618659748,-218.38083392,0.00021095,2]
[372377830,1752618659758,-460.0,0.00021095,2]
[372377832,1752618659767,-1135.32,0.00021095,2]
[372377834,1752618659776,-460.0,0.00021095,2]
[372377837,1752618659786,-4059.97,0.00021095,2]
[372377839,1752618659795,-460.0,0.00021095,2]
[372377841,1752618659804,-1873.25,0.00021095,2]
[372377842,1752618659814,-746.27,0.00021095,2]
[372377844,1752618659823,-460.0,0.00021095,2]
[372377853,1752618659889,-460.0,0.00021095,2]
[372377855,1752618659903,-460.0,0.00021095,2]
[372377857,1752618659913,-460.0,0.00021095,2]
[372377859,1752618659922,-160.69,0.00021095,2]
[372377861,1752618659932,-460.0,0.00021095,2]
[372377863,1752618659941,-460.0,0.00021095,2]
[372377865,1752618659951,-1384.87,0.00021095,2]
[372377867,1752618659960,-460.0,0.00021095,2]
[372377869,1752618659970,-1481.18,0.00021095,2]
[372377871,1752618659979,-460.0,0.00021095,2]
[372377873,1752618659989,-1389.79,0.00021095,2]
[372377875,1752618659998,-460.0,0.00021095,2]
[372377877,1752618660008,-460.0,0.00021095,2]
[372377879,1752618660017,-460.0,0.00021095,2]
[372377881,1752618660027,-532.92,0.00021095,2]
[372377883,1752618660036,-460.0,0.00021095,2]
[372377885,1752618660046,-460.0,0.00021095,2]
[372377888,1752618660063,-460.0,0.00021095,2]
[372377890,1752618660078,-264.13584822,0.00021095,2]
[372377892,1752618660087,-460.0,0.00021095,2]
[372377894,1752618660097,-460.0,0.00021095,2]
[372377896,1752618660106,-311.8772773,0.00021095,2]
[372377897,1752618660117,-3259.16,0.00021095,2]
[372377899,1752618660131,-460.0,0.00021095,2]
[372377901,1752618660147,-957.55,0.00021095,2]
[372377903,1752618660156,-460.0,0.00021095,2]
[372377904,1752618660167,-1328.03,0.00021095,2]
[372377905,1752618660176,-460.0,0.00021095,2]
[372377906,1752618660185,-460.0,0.00021095,2]
[372377907,1752618660195,-460.0,0.00021095,2]
[372377908,1752618660203,-460.0,0.00021095,2]
[372377909,1752618660213,-635.38,0.00021095,2]
[372377910,1752618660221,-460.0,0.00021095,2]
[372377911,1752618660231,-460.0,0.00021095,2]
[372377912,1752618660240,-1382.32,0.00021095,2]
[372377913,1752618660249,-296.26496118,0.00021095,2]
[372377914,1752618660258,-460.0,0.00021095,2]
[372377915,1752618660267,-3973.64,0.00021095,2]
[372377916,1752618660277,-460.0,0.00021095,2]
[372377917,1752618660286,-460.0,0.00021095,2]
[372377918,1752618660296,-550.84,0.00021095,2]
[372377919,1752618660305,-664.77,0.000211,2]
[372377920,1752618660314,-151.0,0.000211,3]
[372377921,1752618660323,-16356.88,0.000211,2]
[372377922,1752618660333,-151.0,0.00021126,2]
[372377923,1752618660342,-151.905852,0.00021126,2]
[372377924,1752618660352,-151.0,0.00021126,2]
[372377925,1752618660361,-151.0,0.00021126,2]
[372377926,1752618660370,-151.0,0.00021126,2]
[372377927,1752618660379,-151.0,0.00021126,2]
[372377928,1752618660388,-151.0,0.00021126,2]
[372377929,1752618660397,-151.0,0.00021126,2]
[372377930,1752618660406,-236.940462,0.00021126,2]
[372377931,1752618660415,-236.940462,0.00021126,2]
[372377932,1752618660424,-205.0,0.0002119,2]
[372377933,1752618660434,-245.627837,0.000212,2]
[372377934,1752618660443,-1104.34,0.000213,2]
[372377935,1752618660452,-159.7039591,0.00021342,2]
[372377936,1752618660462,-153.0,0.00021342,2]
[372377937,1752618660471,-159.7039591,0.00021342,2]
[372377938,1752618660481,-159.7039591,0.00021342,2]
[372377939,1752618660490,-159.7039591,0.00021342,2]
[372377941,1752618660500,-2652.93353428,0.00021356,2]
[372377942,1752618660509,-151.0,0.00021369,2]
[372377944,1752618660519,-175.882161,0.00021369,2]
[372377946,1752618660528,-151.0,0.00021369,2]
[372377948,1752618660538,-151.0,0.00021369,2]
[372377950,1752618660547,-151.0,0.00021369,2]
[372377952,1752618660557,-151.0,0.00021369,2]
[372377954,1752618660566,-151.0,0.00021369,2]
[372377956,1752618660575,-222.004628,0.00021369,2]
[372377958,1752618660584,-222.004628,0.00021369,2]
[372377960,1752618660594,-152.459191,0.00021369,2]
[372377962,1752618660603,-152.459191,0.00021369,2]
[372377964,1752618660613,-460.0,0.00021369,2]
[372377966,1752618660623,-460.0,0.00021369,2]
[372377968,1752618660633,-411.78006495,0.00021369,2]
[372377970,1752618660642,-460.0,0.00021369,2]
[372377972,1752618660652,-460.0,0.00021369,2]
[372377974,1752618660662,-176.48,0.00021369,2]
[372377976,1752618660671,-518.89,0.00021369,2]
[372377978,1752618660680,-460.0,0.00021369,2]
[372377980,1752618660689,-1135.32,0.00021369,2]
[372377982,1752618660699,-460.0,0.00021369,2]
[372377984,1752618660708,-4059.97,0.00021369,2]
[372377986,1752618660717,-460.0,0.00021369,2]
[372377988,1752618660727,-1873.25,0.00021369,2]
[372377990,1752618660736,-746.27,0.00021369,2]
[372377992,1752618660745,-460.0,0.00021369,2]
[372377994,1752618660754,-460.0,0.00021369,2]
[372377996,1752618660763,-574.18635365,0.00021369,2]
[372377997,1752618660772,-460.0,0.00021369,2]
[372378000,1752618660782,-460.0,0.00021369,2]
[372378002,1752618660791,-460.0,0.00021369,2]
[372378003,1752618660801,-1384.87,0.00021369,2]
[372378005,1752618660811,-460.0,0.00021369,2]
[372378007,1752618660821,-1481.18,0.00021369,2]
[372378009,1752618660830,-564.7,0.00021369,2]
[372378011,1752618660840,-1389.79,0.00021369,2]
[372378013,1752618660849,-460.0,0.00021369,2]
[372378015,1752618660859,-460.0,0.00021369,2]
[372378018,1752618660868,-482.07672015,0.00021369,2]
[372378019,1752618660877,-518.31,0.00021369,2]
[372378022,1752618660887,-460.0,0.00021369,2]
[372378030,1752618660958,-460.0,0.00021369,2]
[372378032,1752618660968,-460.0,0.00021369,2]
[372378034,1752618660978,-3259.16,0.00021369,2]
[372378036,1752618660988,-460.0,0.00021369,2]
[372378038,1752618660997,-957.55,0.00021369,2]
[372378040,1752618661006,-460.0,0.00021369,2]
[372378042,1752618661016,-1328.03,0.00021369,2]
[372378044,1752618661025,-460.0,0.00021369,2]
[372378046,1752618661035,-460.0,0.00021369,2]
[372378048,1752618661044,-460.0,0.00021369,2]
[372378050,1752618661056,-635.38,0.00021369,2]
[372378052,1752618661066,-460.0,0.00021369,2]
[372378054,1752618661076,-460.0,0.00021369,2]
[372378056,1752618661085,-1382.32,0.00021369,2]
[372378058,1752618661095,-460.0,0.00021369,2]
[372378060,1752618661105,-3973.64,0.00021369,2]
[372378062,1752618661114,-460.0,0.00021369,2]
[372378064,1752618661124,-460.0,0.00021369,2]
[372378066,1752618661133,-550.84,0.00021369,2]
[372378068,1752618661144,-1000.0,0.00021409,2]
[372378070,1752618661154,-2059.83,0.00021424,3]
[372378072,1752618661167,-25000.0,0.00021456,2]
[372378074,1752618661185,-500.0,0.00021456,2]
[372378076,1752618661196,-2759.0504015,0.00021456,2]
[372378078,1752618661206,-500.0,0.00021456,2]
[372378080,1752618661215,-500.0,0.00021456,2]
[372378082,1752618661225,-500.0,0.00021456,2]
[372378084,1752618661236,-500.0,0.00021456,2]
[372378086,1752618661245,-151.0,0.00021456,2]
[372378088,1752618661255,-151.0,0.00021456,2]
[372378090,1752618661264,-500.0,0.00021456,2]
[372378092,1752618661273,-151.0,0.00021456,2]
[372378094,1752618661283,-500.0,0.00021456,2]
[372378096,1752618661292,-151.0,0.00021456,2]
[372378098,1752618661301,-151.0,0.00021456,2]
[372378100,1752618661311,-151.0,0.00021456,2]
[372378102,1752618661320,-151.0,0.00021456,2]
[372378104,1752618661330,-5.77210476,0.00021456,2]
[372378107,1752618661346,-494.22789524,0.00021456,2]
[372378109,1752618661356,-151.0,0.00021456,2]
[372378111,1752618661365,-151.0,0.00021456,2]
[372378113,1752618661374,-151.0,0.00021456,2]
[372378115,1752618661383,-151.0,0.00021456,2]
[372378117,1752618661392,-151.0,0.00021456,2]
[372378119,1752618661401,-151.0,0.00021456,2]
[372378121,1752618661410,-151.0,0.00021456,2]
[372378122,1752618661419,-151.0,0.00021456,2]
[372378125,1752618661436,-151.0,0.00021456,2]
[372378128,1752618661456,-500.0,0.00021456,2]